Cogmind - Beta 13 @@@ ROGUE MODE // 2024.04.01 @ 14:49:01 Player: youngster Result: Destroyed by B-75 Beast with Magnetic Acceleration Cannon Performance ------------- Evolutions (2) 1000 Regions Visited (6) 1200 Robots Destroyed (65) 325 Value Destroyed (2319) 2319 Prototype IDs (17) 340 Alien Tech Used (0) 0 Bonus (877) 877 TOTAL SCORE: 6061 Bonus ------- High Alert Combat Kills 142 Follower Combat Kills 35 Entered Garrisons 200 Used RIF Installer 500 Cogmind --------- Core Integrity 0/550 Matter 293/300 Energy 160/160 System Corruption 15% Temperature Cool (0) Movement Walking (190) Ox1 Location -8/Garrison Parts ------- > --- POWER (1) -------- Light Nuclear Core > --- PROPULSION (3) --- Aluminum Leg Aluminum Leg Aluminum Leg > --- UTILITY (4) ------ High-capacity Storage Unit Structural Scanner > --- WEAPON (3) ------- Makeshift Hammer > --- INVENTORY (20) --- Reinforced Ion Engine Light Treads Gravmag System Large Battery (200) High-capacity Matter Pod (200) Experimental Sensor Array Seismic Detector Seismic Detector Relay Coupler [NC] (29) Relay Coupler [Swarmer] (44) Relay Coupler [Grunt] (34) Relay Coupler [Brawler] (41) Relay Coupler [Sentry] (22) Relay Coupler [Behemoth] (16) High-powered Tractor Beam Beam Rifle Autogun High-powered Shotgun Improved Datajack Mining Laser Peak State ------------ > --- POWER ------------ Reinforced Ion Engine > --- PROPULSION ------- Light Treads Light Treads > --- UTILITY ---------- High-capacity Storage Unit Experimental Sensor Array Hardened Medium Armor Plating Hardlight Generator > --- WEAPON ----------- Medium Laser Beam Rifle > --- INVENTORY -------- Reinforced Ion Engine Light Treads Light Treads Light Treads Large Battery High-capacity Matter Pod Structural Scanner Seismic Detector Seismic Detector High-powered Tractor Beam Autogun Improved Datajack Mining Laser Makeshift Hammer [Rating: 25] Favorites ----------- Power Light Ion Engine Engine Light Ion Engine Power Core Light Nuclear Core Propulsion Light Treads Treads Light Treads Leg Aluminum Leg Wheel Compact Wheel Hover Unit Gravmag System Utility Seismic Detector Device Seismic Detector Storage High-capacity Storage Unit Protection Hardened Medium Armor Plating Weapon Beam Rifle Energy Gun Beam Rifle Ballistic Gun Light Assault Rifle Launcher Missile Launcher Impact Weapon Makeshift Hammer Special Melee Weapon Improved Datajack Build | -11 -10 -10 -10 -9 -8 -8 ------- Run | Yrd Mat Min Exi Min Mat Gar Slots Evolved 4 | . . . . . 4 . Power . | . . . . . . . Propulsion 1 | . . . . . 1 . Utility 2 | . . . . . 2 . Weapon 1 | . . . . . 1 . Parts Attached 81 | 7 19 6 5 9 1 34 Power 7 | 1 2 1 . . . 3 Engine 5 | 1 1 1 . . . 2 Core 2 | . 1 . . . . 1 Reactor . | . . . . . . . Propulsion 20 | 2 2 . . . 1 15 Treads 15 | 2 2 . . . . 11 Leg 3 | . . . . . . 3 Wheel 1 | . . . . . 1 . Hover 1 | . . . . . . 1 Flight . | . . . . . . . Utility 26 | 2 6 2 2 7 . 7 Device 17 | 1 4 2 . 5 . 5 Storage 4 | 1 2 . 1 . . . Processor . | . . . . . . . Hackware . | . . . . . . . Protection 5 | . . . 1 2 . 2 Artifact . | . . . . . . . Weapon 28 | 2 9 3 3 2 . 9 Energy Gun 15 | 2 3 2 1 2 . 5 Energy Cannon . | . . . . . . . Ballistic Gun 3 | . 3 . . . . . Ballistic Cannon . | . . . . . . . Launcher 8 | . 3 1 1 . . 3 Special Weapon . | . . . . . . . Impact Weapon 1 | . . . . . . 1 Slashing Weapon . | . . . . . . . Piercing Weapon . | . . . . . . . Special Melee Weapon 1 | . . . 1 . . . Unidentified Prototypes 1 | . . . . . . 1 Corrupted Parts 1 | . . . . . . 1 System Corruption 6 | . . . . . . 6 Parts Lost 20 | . 1 1 . 2 2 14 Power 4 | . 1 1 . 1 . 1 Propulsion 7 | . . . . . 1 6 Utility 4 | . . . . . . 4 Weapon 5 | . . . . 1 1 3 Highest Loss Streak 7 | . 1 1 . 1 2 7 To Critical Strikes . | . . . . . . . Average Slot Usage (%) 89 | . 99 99 100 95 53 70 Engine 8 | . 7 13 14 9 . 4 Core 1 | . 7 . . . . . Treads 24 | . 27 28 28 28 17 14 Device 13 | . 14 14 12 13 9 14 Storage 12 | . 14 14 14 14 9 9 Protection 1 | . . . 1 . . 5 Energy Gun 18 | . 14 27 14 25 17 11 Ballistic Gun 2 | . 11 . . . . . Launcher 1 | . 2 . 5 2 . . Naked Turns . | . . . . . . . Heaviest Build 69 | 14 32 30 60 53 47 69 Greatest Support 60 | 40 40 40 40 40 40 60 Greatest Overweight (x) 4 | . . . 1 1 2 4 Average Overweight (x) . | . . . . 1 1 2 Largest Inventory Capacity 20 | 8 15 15 20 20 20 20 Average Capacity 16 | 7 12 15 15 20 20 20 Most Carried 20 | 5 15 15 15 17 17 20 Average Carried 14 | 3 11 14 15 15 16 15 Final Capacity 20 | 8 15 15 20 20 20 20 Final Carried 20 | 5 14 15 15 17 16 20 Class Distribution -------------------- 85% | Mutant 10% | Scavenger-Mutant 4% | Bothacker-Mutant Dominant Class ---------------- Mutant | -10/Materials Mutant | -10/Mines Mutant | -10/Exiles Mutant | -9/Mines Mutant | -8/Materials Scavenger-Mutant | -8/Garrison Resources | -11 -10 -10 -10 -9 -8 -8 ----------- Run | Yrd Mat Min Exi Min Mat Gar Matter Collected 1373 | 270 500 79 30 100 . 394 Remotely . | . . . . . . . Salvage Created 2000 | 177 604 131 . 253 . 835 Parts 105 | 12 38 12 . 14 . 29 Haulers Intercepted . | . . . . . . . Recyclers Shooed 2 | . 2 . . . . . Parts Field Recycled . | . . . . . . . Retrieved Matter . | . . . . . . . Parts Self-Destructed . | . . . . . . . Prevented . | . . . . . . . Kills | -11 -10 -10 -10 -9 -8 -8 ------- Run | Yrd Mat Min Exi Min Mat Gar Combat Hostiles Destroyed 51 | . 13 8 . 5 . 25 Melee 1 | . . . . . . 1 Guns 36 | . 11 4 . 5 . 16 AOE 12 | . 2 4 . . . 6 Classes Destroyed 11 | 2 4 . . 2 . 3 Worker 1 | . . . . 1 . . Builder 2 | . 2 . . . . . Tunneler 6 | 4 . 1 . 1 . . Recycler 3 | 1 2 . . . . . Watcher 2 | . 2 . . . . . Swarmer 17 | . 3 6 . . . 8 Grunt 23 | . 10 2 . 4 . 7 Brawler 5 | . . . . . . 5 Duelist 2 | . . . . 1 . 1 Specialist 1 | . . . . . . 1 Programmer 3 | . . . . . . 3 Best Kill Streak 9 | 2 6 3 . 2 . 9 Combat Bots Only 9 | . 5 3 . 2 . 9 Max Kills in Single Turn 3 | 1 2 3 . 1 . 2 Gunslinging . | . . . . . . . Exploded 3 | . 2 3 . . . 2 Melee 1 | . . . . . . 1 Uniques/NPCs Destroyed . | . . . . . . . Combat | -11 -10 -10 -10 -9 -8 -8 -------- Run | Yrd Mat Min Exi Min Mat Gar Hostile Shots Fired 314 | . 49 16 . 41 7 201 Missed 71 | . 10 6 . 14 1 40 Damage Taken 3334 | . 503 118 . 374 101 2238 Core 754 | . 83 45 . 51 . 575 Absorbed by Shields 164 | . . . . . . 164 Regen/Repaired (Parts) 147 | . 147 . . . . . Core Remaining (%) 64 | 100 . . . 28 . . Volleys Fired 164 | 15 53 9 . 20 1 66 Largest 2 | 2 2 2 . 2 2 2 Hottest 112 | 90 112 112 . 112 112 112 Shots Fired 307 | 30 100 16 . 40 2 119 Gun 293 | 30 94 14 . 40 2 113 Cannon . | . . . . . . . Launcher 14 | . 6 2 . . . 6 Special . | . . . . . . . Kinetic 62 | . 62 . . . . . Thermal 231 | 30 32 14 . 40 2 113 Explosive 14 | . 6 2 . . . 6 Electromagnetic . | . . . . . . . Robot Hit Streak 15 | 8 13 4 . 15 7 9 Robot Miss Streak 3 | 1 2 1 . 3 . 3 Penetration Max . | . . . . . . . Secondary Targets 4 | . . . . 1 . 3 Max Gunslinging Chain 1 | . . . . 1 . 1 Shots Hit Robots 220 | 23 59 8 4 29 2 95 Core Hits 108 | 6 34 10 . 14 . 44 Critical Kills 2 | . 1 . . . . 1 Critical Parts Destroyed 4 | . . . . . . 4 Critical Strikes 15 | 1 2 . . 3 . 9 Burn 9 | 1 1 . . 3 . 4 Destroy 1 | . 1 . . . . . Smash 5 | . . . . . . 5 Melee Attacks 46 | . . . 4 . . 42 Impact 42 | . . . . . . 42 Slashing . | . . . . . . . Piercing . | . . . . . . . Sneak Attacks 4 | . . . 4 . . . Combat Hostiles . | . . . . . . . Follow-up Attacks . | . . . . . . . Damage Inflicted 4464 | 277 789 335 . 443 31 2589 Guns 2499 | 277 602 116 . 432 29 1043 Cannons . | . . . . . . . Explosions 837 | . 185 169 . . . 483 Melee 1038 | . . . . . . 1038 Ramming 90 | . 2 50 . 11 2 25 Kinetic 298 | . 298 . . . . . Thermal 2201 | 277 304 116 . 432 29 1043 Explosive 837 | . 185 169 . . . 483 Electromagnetic . | . . . . . . . Impact 1038 | . . . . . . 1038 Slashing . | . . . . . . . Piercing . | . . . . . . . Highest Corruption 15 | . . . . . . 15 Average Corruption 13 | . . . . . . 13 Corruption Purged . | . . . . . . . Corruption Blocked . | . . . . . . . Effects 18 | . . . . . . 18 Message Errors 6 | . . . . . . 6 Matter Fused 6 | . . . . . . 6 Energy Discharges 3 | . . . . . . 3 Data Loss (minor) 3 | . . . . . . 3 Overload Shots . | . . . . . . . Overflow Damage 382 | . 10 . . . . 372 Projectiles . | . . . . . . . Explosions 99 | . 10 . . . . 89 Melee 283 | . . . . . . 283 Knockbacks 2 | . . 1 . . . 1 Impact 2 | . . 1 . . . 1 Kinetic . | . . . . . . . Secondary . | . . . . . . . Self-Inflicted Damage 117 | . 50 30 . . . 37 Shots 4 | . 2 1 . . . 1 Rammed 22 | . 2 10 . 1 1 8 Targets Rammed 23 | . 2 11 . 1 1 8 Kicked . | . . . . . . . Crushed 1 | . . 1 . . . . Highest Temperature 358 | 150 208 159 . 72 18 358 Average Temperature 84 | 52 56 78 . 34 12 128 Received Heat Transfer 955 | . 240 18 . 180 54 463 Effects 6 | . . . . . . 6 Shutdowns 1 | . . . . . . 1 Energy Bleed 2 | . . . . . . 2 Interference 3 | . . . . . . 3 Siege Activations . | . . . . . . . Robots Corrupted . | . . . . . . . Combat Hostiles . | . . . . . . . Parts Fried 1 | . . . . . . 1 Impact Corruptions 13 | . . . . . . 13 Robots Melted . | . . . . . . . Combat Hostiles . | . . . . . . . Parts Melted 13 | 3 1 . . 1 . 8 Heat Transferred 6380 | 793 851 296 . 1332 74 3034 Parts Sabotaged . | . . . . . . . Parts Stolen . | . . . . . . . Parts Stripped . | . . . . . . . Power Chain Reactions . | . . . . . . . Alert | -11 -10 -10 -10 -9 -8 -8 ------- Run | Yrd Mat Min Exi Min Mat Gar Peak Influence 762 | 25 234 155 . 135 124 762 Initial 67 | . 16 24 . . . 67 Average 167 | 10 94 85 . 20 76 473 Maximum Alert Level 3 | . 1 . . . . 3 Low Security (%) 76 | 100 90 100 . 100 100 17 Level 1 7 | . 9 . . . . 18 Level 2 11 | . . . . . . 45 Level 3 4 | . . . . . . 17 Level 4 . | . . . . . . . Level 5 . | . . . . . . . High Security . | . . . . . . . Max Security . | . . . . . . . Squads Dispatched 4 | . 1 1 . . 2 . Investigation 2 | . 1 1 . . . . Extermination . | . . . . . . . Reinforcement 1 | . . . . . 1 . Assault . | . . . . . . . Garrison 1 | . . . . . 1 . Intercept . | . . . . . . . Searches Triggered . | . . . . . . . Construction Impeded . | . . . . . . . Haulers Reinforced . | . . . . . . . Active Scanning Responses . | . . . . . . . Cargo Convoy Interrupts . | . . . . . . . Stealth | -11 -10 -10 -10 -9 -8 -8 --------- Run | Yrd Mat Min Exi Min Mat Gar Distress Signals 2 | . . . . . 2 . Communications Jammed . | . . . . . . . Distress Signals . | . . . . . . . Times Spotted 70 | . 19 7 . 8 8 28 Peak Tracking Total 6 | . 3 3 . 3 4 6 Tactical Retreats 4 | . . . . 2 1 1 Traps | -11 -10 -10 -10 -9 -8 -8 ------- Run | Yrd Mat Min Exi Min Mat Gar Traps Triggered 1 | . . . . . . 1 Indirectly . | . . . . . . . Trap Hack Attempts . | . . . . . . . Triggered . | . . . . . . . Disarmed . | . . . . . . . Reprogrammed . | . . . . . . . Reused 2 | . . . . 2 . . Traps Extracted . | . . . . . . . Installed 4 | . . . . 4 . . Triggered 2 | . . . . 2 . . Machines | -11 -10 -10 -10 -9 -8 -8 ---------- Run | Yrd Mat Min Exi Min Mat Gar Machines Disabled 4 | . 1 . . . . 3 Max in Single Turn 1 | . 1 . . . . 1 Garrison Relay 3 | . . . . . . 3 Machines Repaired . | . . . . . . . Machines Dismantled . | . . . . . . . Machines Sabotaged . | . . . . . . . Overloaded Fab Kills . | . . . . . . . Hacking | -11 -10 -10 -10 -9 -8 -8 --------- Run | Yrd Mat Min Exi Min Mat Gar Machines Accessed 14 | . 10 1 1 . 2 . Terminals 8 | . 7 . . . 1 . Fabricators . | . . . . . . . Repair Stations 1 | . 1 . . . . . Recycling Units 2 | . 2 . . . . . Scanalyzers . | . . . . . . . Garrison Access 1 | . . . . . 1 . Total Hacks 38 | . 29 1 1 . 7 . Successful 23 | . 16 1 1 . 5 . Failed 15 | . 13 . . . 2 . Catastrophic 1 | . . . . . 1 . Database Lockouts . | . . . . . . . Manual 22 | . 19 . . . 3 . Terminals 27 | . 21 . . . 6 . Fabricators . | . . . . . . . Repair Stations 4 | . 4 . . . . . Recycling Units 4 | . 4 . . . . . Scanalyzers . | . . . . . . . Garrison Access 1 | . . . . . 1 . Terminal Hacks 12 | . 8 1 1 . 2 . Record 1 | . . . 1 . . . Part Schematic 1 | . 1 . . . . . Robot Schematic 1 | . 1 . . . . . Robot Analysis 3 | . 3 . . . . . Prototype ID Bank 1 | . . . . . 1 . Open Door 1 | . . 1 . . . . Locate Traps 1 | . . . . . 1 . Maintenance Status 1 | . 1 . . . . . Hauler Manifests 2 | . 2 . . . . . Fabricator Hacks . | . . . . . . . Repair Station Hacks 4 | . 4 . . . . . Scan Component 2 | . 2 . . . . . Repair 2 | . 2 . . . . . Recycling Unit Hacks . | . . . . . . . Scanalyzer . | . . . . . . . Garrison Access Hacks 1 | . . . . . 1 . Unlock Access 1 | . . . . . 1 . Unauthorized Hacks 6 | . 4 . . . 2 . Terminals 5 | . 3 . . . 2 . Botnet 3 | . 2 . . . 1 . Operators 2 | . 1 . . . 1 . Fabricators . | . . . . . . . Repair Stations . | . . . . . . . Recycling Units 1 | . 1 . . . . . Tunnel 1 | . 1 . . . . . Scanalyzers . | . . . . . . . Garrison Access . | . . . . . . . Data Cores Recovered . | . . . . . . . Used . | . . . . . . . Hacking Detections 9 | . 8 . . . 1 . Full Trace Events . | . . . . . . . Feedback Events . | . . . . . . . Feedback Blocked . | . . . . . . . Robot Schematics Acquired 1 | . 1 . . . . . Robots Built . | . . . . . . . Authchips . | . . . . . . . Time . | . . . . . . . Total Robot Build Rating . | . . . . . . . Part Schematics Acquired 1 | . 1 . . . . . Parts Built . | . . . . . . . Authchips . | . . . . . . . Time . | . . . . . . . Total Part Build Rating . | . . . . . . . Parts Repaired 2 | . 2 . . . . . Time 52 | . 52 . . . . . Parts Recycled . | . . . . . . . Recycled Matter . | . . . . . . . Retrieved Matter . | . . . . . . . Retrieved Components . | . . . . . . . Parts Scanalyzed . | . . . . . . . Part Schematics Acquired . | . . . . . . . Parts Damaged . | . . . . . . . Bothacking | -11 -10 -10 -10 -9 -8 -8 ------------ Run | Yrd Mat Min Exi Min Mat Gar Used RIF Installer 1 | . . . . . . 1 Robots Hacked 4 | . . . 4 . . . Non-combat 3 | . . . 3 . . . Combat 1 | . . . 1 . . . Robot Hacks Applied 4 | . . . 4 . . . parse_system 4 | . . . 4 . . . Relay Couplers Released 12 | . . . . . . 12 Machine Destruction 12 | . . . . . . 12 Fabnet Peak Effective % . | . . . . . . . Robots Rewired . | . . . . . . . Allies Hacked . | . . . . . . . Hacks Repelled . | . . . . . . . Allies | -11 -10 -10 -10 -9 -8 -8 -------- Run | Yrd Mat Min Exi Min Mat Gar Total Allies 3 | . . . . 3 . . Largest Group 3 | . . . . 3 3 2 Highest-Rated Group 40 | . . . . 40 40 32 Highest-Rated Ally 16 | . . . . 16 16 16 Total Orders . | . . . . . . . Ally Attacks 32 | . . . . . 22 10 Total Damage 301 | . . . . . 238 63 Kills 6 | . . . . . 4 2 Allies Corrupted . | . . . . . . . Allies Melted . | . . . . . . . Intel | -11 -10 -10 -10 -9 -8 -8 ------- Run | Yrd Mat Min Exi Min Mat Gar Robot Analysis Total 3 | . 3 . . . . . Derelict Logs Recovered 4 | . . 1 . 3 . . Drone Launches . | . . . . . . . Drone Recoveries . | . . . . . . . Exploration | -11 -10 -10 -10 -9 -8 -8 ------------- Run | Yrd Mat Min Exi Min Mat Gar Turns Passed 6216 | 189 1489 1002 441 1429 207 1459 Spaces Moved 2818 | 83 730 586 253 558 82 526 Core 5 | 5 . . . . . . Treads 2387 | 78 730 586 253 558 71 111 Legs 59 | . . . . . . 59 Wheels 280 | . . . . . 11 269 Hover 87 | . . . . . . 87 Flight . | . . . . . . . Fastest Speed 50 | 50 160 160 160 240 130 130 Average Speed 186 | 153 160 160 170 240 225 202 Slowest Speed 400 | 160 160 160 240 240 240 400 Overloaded Moves . | . . . . . . . Propulsion Burnouts . | . . . . . . . Robots Hopped . | . . . . . . . Cave-ins Triggered . | . . . . . . . Exploration Rate (%) 59 | 8 98 98 65 93 13 41 Regions Visited 6 Branch Regions 3 Pre-discovered Areas 4 | . 1 1 1 1 . . Known Exits Taken 1 | . . . . . 1 . Unknown Exits Taken 5 | 1 1 1 1 1 . . Scrap Searched 5 | . . 1 . 4 . . Spaces Dug 53 | . 17 21 . . . 15 Terrain Destroyed 91 | . 37 21 . . . 33 Melee 5 | . . . . . . 5 Projectile . | . . . . . . . AOE 86 | . 37 21 . . . 28 Terrain Rammed . | . . . . . . . Walls Destroyed . | . . . . . . . Machines Disabled . | . . . . . . . Actions | -11 -10 -10 -10 -9 -8 -8 --------- Run | Yrd Mat Min Exi Min Mat Gar Total 3399 | 111 958 629 262 603 101 735 Wait 219 | 2 140 3 . 9 17 48 Move 2812 | 82 729 585 252 557 81 526 Hop . | . . . . . . . Pick Up 31 | 5 7 8 . 3 . 8 Fast Attach 22 | 7 7 1 . . . 7 Attach 16 | . 1 . . 1 1 13 Detach 7 | . 4 . . . . 3 Swap 43 | . 11 5 5 8 . 14 Drop 12 | . 4 7 1 . . . Fire 164 | 15 53 9 . 20 1 66 Melee 46 | . . . 4 . . 42 Ram . | . . . . . . . Kick . | . . . . . . . Crush 23 | . 2 11 . 1 1 8 Escape Stasis . | . . . . . . . Rewire . | . . . . . . . Trap 4 | . . . . 4 . . Miscellaneous . | . . . . . . . Route ------- -11/Scrapyard -10/Materials (discovered 6 exits: [*Mat x3] / *Min x2 / [Sub]) -10/Mines (discovered 3 exits: [*Mat x2] / *Exi) -10/Exiles -9/Mines (discovered 2 exits: *Mat x2) -8/Materials (discovered 2 exits: Fac / Gar) -8/Garrison (discovered 1 exit: [*Mat]) History --------- Turn | Location | Event 10 | -11/Scrapyard | Discovered new exit (range 15) 190 | -11/Scrapyard | Entered Materials 302 | -10/Materials | Build established: Mutant 521 | -10/Materials | Discovered new exit (range 7) 571 | -10/Materials | Discovered new exit (range 11) 746 | -10/Materials | Discovered new exit (range 15) 1024 | -10/Materials | Discovered new exit (range 8) 1213 | -10/Materials | Discovered new exit (range 8) 1367 | -10/Materials | Repaired Lgt. Treads 1398 | -10/Materials | Repaired Lgt. Treads 1409 | -10/Materials | Discovered new exit (range 9) 1679 | -10/Materials | Entered Mines 1760 | -10/Mines | Met a Derelict shopkeep closing up shop 1852 | -10/Mines | Learned location of Storage (-9) 1852 | -10/Mines | Discovered new exit (range 6) 2003 | -10/Mines | Learned Materials emergency access door positions 2100 | -10/Mines | Found a damaged Exp. Sensor Array with a note attached 2105 | -10/Mines | Found Prototype Device 2143 | -10/Mines | Core integrity fell below 50% 2148 | -10/Mines | Discovered new exit (range 6) 2273 | -10/Mines | Deemed a non-threat by the Exiles lab entrance 2674 | -10/Mines | Discovered new exit (range 5) 2681 | -10/Mines | Entered Exiles 2723 | -10/Exiles | Met 8R-AWN 2754 | -10/Exiles | Met EX-HEX 2800 | -10/Exiles | Met EX-BIN 2849 | -10/Exiles | Met EX-DEC 2856 | -10/Exiles | Learned location of Zion (-7) 3093 | -10/Exiles | Discovered new exit (range 14) 3122 | -10/Exiles | Entered Mines 3136 | -9/Mines | Met a Derelict bent on vengeance 3143 | -9/Mines | Learned location of 1 exit from Materials 3250 | -9/Mines | Found a hidden stash of uninstalled traps 3523 | -9/Mines | A weapon hastily lodged in a ceiling crevice suddenly fell to the ground 3786 | -9/Mines | Discovered new exit (range 13) 3882 | -9/Mines | Discovered new exit (range 7) 4185 | -9/Mines | Learned Materials emergency access door positions 4546 | -9/Mines | Assisted by bots powering up and referring to "LRC-V3" 4551 | -9/Mines | Entered Materials 4551 | -8/Materials | Accompanied by 3 allies 4551 | -8/Materials | Evolved 4 slots: Propulsion x1, Utility x2, Weapon x1 4552 | -8/Materials | Identified exit to Factory 4737 | -8/Materials | Identified exit to Garrison 4743 | -8/Materials | Garrison activated, responded to threat 4758 | -8/Materials | Entered Garrison 4758 | -8/Garrison | Accompanied by 2 allies 4790 | -8/Garrison | Triggered checkpoint 4919 | -8/Garrison | Garrison Relay disabled 5006 | -8/Garrison | Triggered checkpoint 5083 | -8/Garrison | Garrison Relay disabled 5176 | -8/Garrison | Spotted B-75 Beast 5176 | -8/Garrison | Spotted B-75 Beast 5272 | -8/Garrison | Build established: Scavenger-Mutant 5282 | -8/Garrison | Triggered checkpoint 5337 | -8/Garrison | Lost 3 parts (1n2w) 5340 | -8/Garrison | Destroyed 9 combat bots 5398 | -8/Garrison | Discovered new exit (range 8) 5454 | -8/Garrison | Triggered checkpoint 5556 | -8/Garrison | Lost 3 parts (1n2u) 5610 | -8/Garrison | Installed Relay Interface Framework 5643 | -8/Garrison | Identified Exp. Sensor Array 5668 | -8/Garrison | Triggered checkpoint 5742 | -8/Garrison | Core integrity fell below 50% 5754 | -8/Garrison | Core integrity fell below 20% 5765 | -8/Garrison | Lost 7 parts (1p3n2u1w) 5795 | -8/Garrison | System corruption reached 10% 6055 | -8/Garrison | Garrison Relay disabled 6217 | -8/Garrison | Destroyed by B-75 Beast with Magnetic Acceleration Cannon Last Messages --------------- unit. 06055_ Relay Coupler [Sentry] tumbles out of relay unit. 06055_ Relay Coupler [Cutter] tumbles out of relay unit. 06060_ Acquired Relay Coupler [Sentry]. 06061_ K>NWIWT6VE1Z%KNSQU5OPRXSH6EJST0YYV>UMI 06067_ Acquired Relay Coupler [NC]. 06085_ System corrupted: Energy discharge (-38). 06087_ Acquired 10 matter. 06094_ Acquired Aluminum Leg. 06100_ System corrupted: Component data lost. 06106_ Acquired Aluminum Leg. 06125_ Acquired Lgt. Nuclear Core. 06126_ Acquired 40 matter. 06129_ VJOQLBL2D OK KX6OVA3T1BUTRLNU6 /8>WWZ52Y 06160_ System corrupted: Energy discharge (-32). 06177_ 8I6>ZLNO6|